bitfinex-derivatives/quotes_SOLF0:USTF0_20250518
["timestamp","ask_amount","ask_price","bid_price","bid_amount"]
[1747563078039,116.36,171.47,171.39,5.8327]
[1747563078342,116.36,171.47,171.36,116.36]
[1747563078546,5.8312,171.44,171.36,116.36]
[1747563079048,5.8312,171.44,171.4,5.8321]
[1747563079950,116.36,171.47,171.39,5.8327]
[1747563080247,116.36,171.47,171.36,116.36]
[1747563080446,5.8323,171.41,171.38,5.8331]
[1747563081053,58.16,171.43,171.37,5.8333]
[1747563081752,5.8323,171.41,171.38,5.8331]
[1747563082144,58.16,171.43,171.36,58.2]
[1747563082450,5.8322,171.41,171.38,5.8331]
[1747563082649,58.16,171.43,171.36,58.2]
[1747563083150,5.8322,171.41,171.36,58.2]
[1747563083652,58.16,171.43,171.36,58.2]
[1747563083849,5.8322,171.41,171.38,5.8331]
[1747563084848,5.8319,171.42,171.39,5.8328]
[1747563085055,58.16,171.44,171.36,58.2]
[1747563085649,5.8317,171.43,171.36,58.2]
[1747563085951,58.16,171.44,171.39,5.8326]
[1747563086154,5.8318,171.42,171.39,5.8326]
[1747563086451,5.8318,171.42,171.36,58.2]
[1747563087152,5.8316,171.43,171.4,5.8324]
[1747563087756,58.18,171.43,171.32,336.08]
[1747563087955,5.7254,171.42,171.3,58.18]
[1747563089553,5.8342,171.35,171.32,5.8351]
[1747563090851,58.16,171.37,171.31,5.8354]
[1747563091151,58.16,171.37,171.3,58.18]
[1747563091457,58.16,171.37,171.33,5.8348]
[1747563092555,5.8341,171.36,171.33,5.8348]
[1747563092748,58.16,171.37,171.33,5.8348]
[1747563093255,5.8341,171.36,171.32,5.8351]
[1747563093459,58.16,171.37,171.32,5.8351]
[1747563093754,5.8344,171.35,171.31,5.8355]
[1747563094655,5.834,171.36,171.32,5.835]
[1747563096550,5.834,171.36,171.33,5.8347]
[1747563098357,5.8342,171.35,171.32,5.8351]
[1747563098547,5.8342,171.35,171.3,58.18]
[1747563098860,5.8342,171.35,171.31,5.8355]
[1747563100165,5.8342,171.35,171.32,5.8351]
[1747563100956,5.8342,171.35,171.31,5.8354]
[1747563101460,5.8345,171.34,171.31,5.8354]
[1747563101653,58.16,171.37,171.32,5.8352]
[1747563102463,5.8344,171.35,171.32,5.8352]
[1747563110066,5.8346,171.34,171.31,5.8354]
[1747563110270,58.16,171.37,171.3,58.18]
[1747563110563,5.835,171.33,171.3,64.0158]
[1747563110766,5.835,171.33,171.3,5.8358]
[1747563111567,5.8353,171.32,171.29,5.8361]
[1747563112267,5.8349,171.33,171.27,58.18]
[1747563112659,5.8349,171.33,171.3,5.8356]
[1747563113567,5.7012,171.36,171.3,5.8356]
[1747563114268,5.8348,171.34,171.27,58.18]
[1747563114461,5.7012,171.36,171.27,58.18]
[1747563114863,5.8345,171.34,171.27,58.18]
[1747563115269,5.8345,171.34,171.31,5.8353]
[1747563115468,5.835,171.33,171.27,58.18]
[1747563116175,5.835,171.33,171.3,5.8357]
[1747563116972,5.8353,171.32,171.3,5.8357]
[1747563117572,5.7012,171.36,171.3,5.8357]
[1747563118370,5.8349,171.33,171.3,5.8357]
[1747563120571,5.8346,171.34,171.27,58.18]
[1747563121076,63.9944,171.35,171.32,5.835]
[1747563121277,58.16,171.35,171.27,58.18]
[1747563121481,5.835,171.33,171.3,5.8357]
[1747563121774,58.16,171.35,171.3,5.8357]
[1747563122381,5.835,171.33,171.3,5.8357]
[1747563122571,58.16,171.35,171.31,5.8355]
[1747563123679,5.8349,171.33,171.31,5.8355]
[1747563124281,5.8346,171.34,171.32,5.8352]
[1747563124483,58.16,171.35,171.32,5.8352]
[1747563124985,63.9943,171.35,171.32,5.8352]
[1747563125886,63.9943,171.35,171.33,5.8348]
[1747563126087,63.9943,171.35,171.27,58.18]
[1747563126385,63.9943,171.35,171.32,5.835]
[1747563127084,58.16,171.35,171.33,5.8347]
[1747563127686,63.9942,171.35,171.33,5.8347]
[1747563128885,63.9942,171.35,171.32,5.835]
[1747563130990,63.9942,171.35,171.33,5.8347]
[1747563131289,63.9942,171.35,171.27,58.18]
[1747563131693,63.9942,171.35,171.32,5.835]
[1747563132191,69.4384324,171.35,171.32,5.835]
[1747563132488,63.6042324,171.35,171.27,58.18]
[1747563132690,5.4442324,171.35,171.27,58.18]
[1747563133192,5.4442324,171.35,171.28,1.3449]
[1747563133592,5.4442324,171.35,171.34,5.8345]
[1747563134786,7.26363252,171.38,171.31,116.28]
[1747563134787,5.4442324,171.36,171.35,5.8342]
[1747563137399,5.4442324,171.37,171.36,5.8338]
[1747563139797,5.4442324,171.38,171.36,5.8338]
[1747563140892,5.4442324,171.38,171.37,5.8335]
[1747563143099,5.4442324,171.39,171.37,5.8335]
[1747563146199,5.4442324,171.39,171.38,5.8331]
[1747563147496,3.24e-05,171.39,171.38,5.8331]
[1747563149094,63.8206,171.47,171.39,5.8326]
[1747563149499,5.8314,171.44,171.35,121.66983928]
[1747563149699,63.8206,171.47,171.35,121.66983928]
[1747563150110,5.8314,171.44,171.35,121.66983928]
[1747563150812,5.8315,171.43,171.4,5.8322]
[1747563151108,63.8206,171.47,171.35,121.66983928]
[1747563151806,7.26363252,171.46,171.35,116.26]
[1747563152106,5.8315,171.43,171.35,116.26]
[1747563153407,5.8318,171.42,171.35,116.26]
[1747563154005,5.8316,171.43,171.35,116.26]
[1747563154507,5.8319,171.42,171.35,116.26]
[1747563155109,5.8315,171.43,171.35,116.26]
[1747563155410,7.26363252,171.46,171.35,116.26]
[1747563155611,71.08423252,171.47,171.35,116.26]
[1747563155805,5.8321,171.42,171.35,116.26]
[1747563156713,5.8321,171.42,171.39,5.8326]
[1747563157010,58.08,171.44,171.35,116.26]
[1747563157209,71.04423252,171.47,171.35,116.26]
[1747563157410,5.831,171.45,171.36,2.013]
[1747563158414,5.831,171.45,171.42,5.8317]
[1747563159113,5.8305,171.46,171.43,5.8312]
[1747563159714,5.8308,171.45,171.42,5.8316]
[1747563160907,5.8308,171.45,171.43,5.8314]
[1747563163014,5.8306,171.46,171.43,5.8314]
[1747563163214,63.7806,171.47,171.43,5.8314]
[1747563163717,63.7806,171.47,171.42,5.8317]
[1747563164718,5.8311,171.45,171.42,5.8317]
[1747563170631,5.8312,171.44,171.42,5.8317]
[1747563170927,5.8312,171.44,171.41,5.832]
[1747563171123,5.8312,171.44,171.39,58.08]
[1747563172633,5.8312,171.44,171.42,5.8318]
[1747563177139,5.8308,171.45,171.42,5.8318]
[1747563177338,5.8308,171.45,171.43,5.8314]
[1747563178237,5.8308,171.45,171.42,5.8316]
[1747563178835,5.8312,171.44,171.42,5.8316]
[1747563179040,63.7806,171.47,171.4,5.8322]
[1747563180040,5.8319,171.42,171.4,5.8322]
[1747563180743,5.8316,171.43,171.4,5.8322]
[1747563181042,63.7806,171.47,171.4,5.8322]
[1747563181243,5.8316,171.43,171.4,5.8322]
[1747563181541,63.7806,171.47,171.36,118.133]
[1747563181542,63.7806,171.47,171.41,5.832]
[1747563181743,63.7806,171.47,171.36,118.133]
[1747563181927,5.7006,171.47,171.36,118.133]
[1747563182128,63.7406,171.47,171.36,118.133]
[1747563182441,5.8308,171.45,171.42,5.8315]
[1747563182643,63.7406,171.47,171.36,118.133]
[1747563183034,5.8308,171.45,171.43,5.8314]
[1747563184643,5.8312,171.44,171.36,118.133]
[1747563184847,63.7406,171.47,171.36,118.133]
[1747563185144,5.8313,171.44,171.36,118.133]
[1747563185642,5.8313,171.44,171.41,5.8319]
[1747563186037,5.8313,171.44,171.36,118.133]
[1747563186446,63.7406,171.47,171.36,118.133]
[1747563187144,5.8306,171.46,171.43,5.8313]
[1747563188946,5.8308,171.45,171.42,5.8316]
[1747563190452,5.8311,171.44,171.42,5.8316]
[1747563191351,5.8308,171.45,171.42,5.8316]
[1747563191753,63.7406,171.47,171.42,5.8316]
[1747563191948,5.8312,171.44,171.41,5.832]
[1747563193451,5.8315,171.43,171.4,5.8323]
[1747563193748,7.26363252,171.46,171.38,58.04]
[1747563193949,7.26363252,171.46,171.36,60.033]
[1747563194151,5.832,171.42,171.39,5.8326]
[1747563194450,7.26363252,171.46,171.36,60.033]
[1747563194747,5.8316,171.43,171.4,5.8321]
[1747563195252,5.8316,171.43,171.41,5.8321]
[1747563197248,7.26363252,171.46,171.41,5.8321]
[1747563197450,5.8312,171.44,171.42,5.8317]
[1747563199455,5.8309,171.45,171.42,5.8317]
[1747563199955,7.26363252,171.46,171.42,5.8317]
[1747563200256,5.8314,171.44,171.41,5.8321]
[1747563201255,5.8315,171.43,171.41,5.8321]
[1747563201456,71.00423252,171.47,171.41,5.8321]
[1747563202055,5.8312,171.44,171.41,5.8321]
[1747563203257,5.8315,171.43,171.41,5.8321]
[1747563204153,5.8312,171.44,171.41,5.8321]
[1747563204349,5.8312,171.44,171.42,5.8317]
[1747563204549,7.26363252,171.46,171.42,5.8317]
[1747563205556,5.831,171.45,171.42,5.8317]
[1747563206058,5.8312,171.44,171.42,5.8317]
[1747563210059,5.8312,171.44,171.41,5.832]
[1747563212361,11.29529745,171.44,171.41,5.832]
[1747563214361,11.29529745,171.44,171.42,5.8317]
[1747563214561,5.46409745,171.44,171.42,5.8317]
[1747563215463,11.29529745,171.44,171.42,5.8317]
[1747563216258,5.46409745,171.44,171.42,5.8317]
[1747563216458,5.46409745,171.44,171.41,5.832]
[1747563216862,11.29519745,171.44,171.41,5.832]
[1747563217356,11.29519745,171.44,171.42,5.8317]
[1747563217557,5.46409745,171.44,171.38,58.04]
[1747563218461,5.46409745,171.44,171.43,5.8314]
[1747563218865,5.46409745,171.45,171.43,5.8314]
[1747563219665,11.29489745,171.45,171.43,5.8314]
[1747563219868,11.29489745,171.45,171.42,5.8317]
[1747563220765,5.8311,171.44,171.4,5.8322]
[1747563220966,5.8311,171.44,171.38,58.04]
[1747563221371,5.8311,171.44,171.41,5.8319]
[1747563222268,5.46409745,171.43,171.41,5.8319]
[1747563224770,5.46409745,171.43,171.42,5.8318]
[1747563225669,5.46409745,171.43,171.41,5.832]
[1747563227773,5.46409745,171.43,171.42,5.8317]
[1747563228071,11.29519745,171.44,171.42,5.8317]
[1747563228374,11.29519745,171.44,171.41,5.8319]
[1747563230274,5.8314,171.43,171.4,5.8324]
[1747563230469,11.29549745,171.43,171.4,5.8324]
[1747563231068,5.46409745,171.43,171.35,5.40983928]
[1747563231274,63.42409745,171.43,171.35,5.40983928]
[1747563231774,5.8327,171.4,171.37,5.8333]
[1747563232070,57.98,171.42,171.37,5.8333]
[1747563232266,5.833,171.39,171.36,5.8338]
[1747563232466,57.98,171.42,171.36,5.8338]
[1747563232768,5.8325,171.4,171.38,5.8331]
[1747563233777,5.8325,171.4,171.37,5.8332]
[1747563233973,5.8325,171.4,171.34,57.98]
[1747563235077,11.29629745,171.41,171.38,5.8331]
[1747563236377,5.8322,171.41,171.38,5.8331]
[1747563237277,5.8325,171.4,171.38,5.8331]
[1747563239279,5.8322,171.41,171.38,5.8331]
[1747563242186,69.27599745,171.42,171.39,5.8327]
[1747563243197,5.8321,171.41,171.39,5.8327]
[1747563243394,5.8321,171.41,171.38,5.833]
[1747563244396,5.8328,171.4,171.36,5.8337]
[1747563244597,63.44409745,171.42,171.34,165.77035074]
[1747563245098,5.8327,171.4,171.37,5.8332]
[1747563245899,5.46409745,171.42,171.34,165.77035074]
[1747563246397,5.46409745,171.42,171.41,5.8321]
[1747563248500,5.46409745,171.45,171.42,5.8314]
[1747563249300,5.46409745,171.45,171.43,5.8313]
[1747563249502,5.46409745,171.45,171.39,57.94]
[1747563250101,5.46409745,171.45,171.44,5.8311]
[1747563252101,5.46409745,171.47,171.45,5.8304]
[1747563252802,5.46409745,171.47,171.44,5.8309]
[1747563253404,11.29419745,171.47,171.44,5.8309]
[1747563254604,5.46409745,171.47,171.45,5.8307]
[1747563255098,203.96229765,171.48,171.45,5.8307]
[1747563256303,5.8301,171.47,171.45,5.8307]
[1747563256502,198.13249765,171.48,171.39,117.782]
[1747563257103,198.13249765,171.48,171.39,1.922]
[1747563257399,198.13249765,171.48,171.38,63.34983928]
[1747563257604,1.9957,171.47,171.38,63.34983928]
[1747563257803,57.92,171.46,171.4,5.8323]
[1747563258301,5.8315,171.43,171.4,5.8323]
[1747563258798,5.8315,171.43,171.41,5.8321]
[1747563259002,5.8312,171.44,171.38,57.94]
[1747563259502,5.8312,171.44,171.41,5.8318]
[1747563260608,5.8308,171.45,171.42,5.8317]
[1747563263606,63.7505,171.46,171.43,5.8314]
[1747563264007,63.7505,171.46,171.38,57.94]
[1747563264209,63.7505,171.46,171.42,5.8316]
[1747563264907,63.7505,171.46,171.43,5.8314]
[1747563274821,5.46409745,171.48,171.47,5.8301]
[1747563275029,7.26363252,171.51,171.47,115.8]
[1747563275322,7.26363252,171.51,171.5,5.829]
[1747563278220,5.8267,171.57,171.47,115.8]
[1747563278622,5.8267,171.57,171.53,5.8277]
[1747563278823,5.8267,171.57,171.47,115.8]
[1747563279011,1.1657729,171.56,171.47,115.8]
[1747563279217,1.1657729,171.56,171.54,5.8276]
[1747563279420,1.1657729,171.56,171.47,115.8]
[1747563279619,1.1657729,171.56,171.48,57.88]
[1747563280224,1.1657729,171.56,171.55,5.8273]
[1747563280427,65.14363252,171.61,171.54,57.88]
[1747563280722,5.8257,171.6,171.56,5.8268]
[1747563281521,5.826,171.59,171.56,5.8268]
[1747563284726,5.8259,171.6,171.56,5.8268]
[1747563286228,63.6854,171.61,171.57,5.8266]
[1747563287031,5.8257,171.6,171.57,5.8266]
[1747563288632,5.8257,171.6,171.56,5.8269]
[1747563290532,63.6854,171.61,171.57,5.8266]
[1747563291030,57.86,171.61,171.56,5.8269]
[1747563291532,5.8259,171.6,171.56,5.8269]
[1747563292524,5.8259,171.6,171.57,5.8266]
[1747563294225,5.8259,171.6,171.56,5.8269]
[1747563294626,5.8254,171.61,171.54,57.88]
[1747563294826,5.8254,171.61,171.57,5.8264]
[1747563295029,57.84,171.62,171.54,57.88]
[1747563295427,5.8258,171.6,171.57,5.8266]
[1747563297126,5.826,171.59,171.55,5.8272]
[1747563297836,5.8263,171.58,171.55,5.8272]
[1747563298828,57.84,171.62,171.54,57.88]
[1747563300737,5.8273,171.55,171.54,57.88]
[1747563300928,5.8273,171.55,171.52,117.58921195]
[1747563300929,57.84,171.58,171.52,117.58921195]
[1747563301635,5.8275,171.55,171.52,123.41741195]
[1747563303135,5.8271,171.56,171.53,5.8279]
[1747563303535,57.88,171.63,171.54,5.8276]
[1747563303833,57.88,171.63,171.52,117.58921195]
[1747563303834,57.84,171.62,171.52,117.58921195]
[1747563304030,57.88,171.63,171.53,57.84]
[1747563304235,57.84,171.62,171.53,57.84]
[1747563304634,57.88,171.63,171.53,57.84]
[1747563304936,57.84,171.62,171.55,5.8271]
[1747563305139,57.84,171.62,171.53,57.84]
[1747563305837,5.8269,171.57,171.54,5.8275]
[1747563306037,57.84,171.62,171.52,117.58921195]
[1747563306337,5.8283,171.53,171.5,5.8289]
[1747563306534,5.8283,171.53,171.5,63.6489]
[1747563306927,5.8283,171.53,171.51,5.8286]
[1747563307128,5.8277,171.54,171.51,5.8286]
[1747563308135,57.84,171.58,171.5,57.82]
[1747563308533,5.8279,171.54,171.5,57.82]
[1747563309138,5.828,171.53,171.5,63.6488]
[1747563309336,59.8415,171.58,171.46,1.9012]
[1747563309539,3.6596,171.57,171.47,57.82]
[1747563310133,3.6596,171.57,171.49,5.8291]
[1747563310532,5.8286,171.52,171.49,5.8291]
[1747563311134,5.8287,171.51,171.48,5.8296]
[1747563311539,57.84,171.54,171.47,57.84]
[1747563311741,57.84,171.54,171.43,1.8861]
[1747563311937,57.84,171.54,171.36,10.86064802]
[1747563311938,57.84,171.54,171.44,57.84]
[1747563312942,5.8303,171.47,171.44,63.671]
[1747563313332,5.8303,171.47,171.44,57.84]
[1747563313540,5.8303,171.47,171.44,63.6709]
[1747563313945,5.8298,171.48,171.44,57.84]
[1747563314139,57.84,171.5,171.46,5.8301]
[1747563314538,5.8296,171.49,171.46,5.8301]
[1747563315341,57.84,171.5,171.44,57.84]
[1747563315840,57.84,171.5,171.44,63.6709]
[1747563316441,5.83,171.48,171.44,63.6709]
[1747563318243,5.8302,171.47,171.44,63.6709]
[1747563320745,5.8302,171.47,171.45,5.8307]
[1747563320944,5.8298,171.48,171.45,5.8307]
[1747563322645,57.84,171.51,171.44,57.84]
[1747563322851,115.68,171.51,171.44,57.84]
[1747563323143,5.8294,171.49,171.46,5.8302]
[1747563323443,57.84,171.51,171.46,5.8302]
[1747563323642,5.8298,171.48,171.44,57.84]
[1747563323846,57.84,171.51,171.44,57.84]
[1747563324149,5.8301,171.47,171.44,63.6709]
[1747563324847,5.8301,171.47,171.44,57.84]
[1747563325645,3.6984,171.5,171.39,3.7142]
[1747563325843,63.5002,171.5,171.41,57.86]
[1747563326237,5.8311,171.44,171.41,63.6919]
[1747563327245,63.5002,171.5,171.41,57.86]
[1747563327644,5.8298,171.48,171.41,57.86]
[1747563328152,5.8294,171.49,171.45,5.8305]
[1747563328953,5.8298,171.48,171.45,5.8305]
[1747563329347,5.8298,171.48,171.44,5.8309]
[1747563329647,63.5002,171.5,171.41,57.86]
[1747563329849,63.5002,171.5,171.41,63.692]
[1747563330149,5.831,171.45,171.41,63.692]
[1747563330352,5.831,171.45,171.41,57.86]
[1747563331451,5.8311,171.44,171.41,63.6919]
[1747563332954,57.84,171.47,171.41,63.6919]
[1747563333555,5.8309,171.45,171.41,63.6919]
[1747563333755,5.8309,171.45,171.42,5.8317]
[1747563335160,5.8305,171.46,171.43,5.8314]
[1747563335656,57.84,171.47,171.42,5.8316]
[1747563335855,5.8309,171.45,171.42,5.8316]
[1747563336561,5.8309,171.45,171.43,5.8314]
[1747563337666,5.8309,171.45,171.42,5.8317]
[1747563338164,5.8309,171.45,171.41,57.86]
[1747563338466,5.8309,171.45,171.42,5.8317]
[1747563338666,5.8309,171.45,171.41,57.86]
[1747563338965,5.8305,171.46,171.41,57.86]
[1747563339268,5.8305,171.46,171.43,5.8314]
[1747563340665,5.8307,171.45,171.43,5.8314]
[1747563341668,5.8305,171.46,171.43,5.8314]
[1747563342169,63.6895,171.49,171.41,57.86]
[1747563342363,63.5002,171.5,171.41,57.86]
[1747563342364,121.3602,171.5,171.41,57.86]
[1747563342564,63.5002,171.5,171.47,5.8299]
[1747563342773,125.2476,171.5,171.47,5.8299]
[1747563342972,67.3876,171.5,171.47,5.8299]
[1747563343375,67.3876,171.5,171.46,5.8303]
[1747563343376,5.8295,171.49,171.46,5.8303]
[1747563345375,61.5584,171.5,171.41,115.72]
[1747563345672,61.5584,171.5,171.4,57.84]
[1747563346270,5.8312,171.44,171.41,5.8319]
[1747563346468,5.8312,171.44,171.4,57.84]
[1747563347369,5.8312,171.44,171.41,5.8319]
[1747563347572,57.84,171.46,171.4,57.84]
[1747563347976,57.84,171.46,171.41,5.8319]
[1747563349679,5.8313,171.44,171.41,5.8319]
[1747563349972,57.84,171.46,171.4,57.84]
[1747563350375,5.8298,171.48,171.4,57.84]
[1747563350580,64.36066279,171.49,171.43,5.8312]
[1747563350879,5.8305,171.46,171.4,57.84]
[1747563351079,5.8305,171.46,171.43,5.8312]
[1747563354487,64.7501,171.47,171.44,5.8311]
[1747563357488,5.8304,171.46,171.43,5.8313]
[1747563359893,58.92,171.47,171.4,57.84]
[1747563360292,58.92,171.47,171.38,5.40983928]
[1747563360592,57.84,171.46,171.38,5.40983928]
[1747563362590,5.8322,171.41,171.38,11.24283928]
[1747563363387,5.8325,171.4,171.38,5.833]
[1747563363585,5.8325,171.4,171.37,63.6733]
[1747563364688,5.8325,171.4,171.37,5.8333]
[1747563366295,5.8325,171.4,171.34,529.99180187]
[1747563366687,5.8325,171.4,171.34,524.58196259]
[1747563367088,5.8325,171.4,171.36,5.8335]
[1747563367594,5.8325,171.4,171.34,188.70196259]
[1747563367895,5.8331,171.39,171.34,188.70196259]
[1747563368192,58.74,171.42,171.34,188.70196259]
[1747563368390,5.8334,171.38,171.34,58.74]
[1747563368587,58.74,171.42,171.32,5.40983928]
[1747563368588,58.68,171.39,171.32,5.40983928]
[1747563368787,64.5128,171.39,171.32,5.40983928]
[1747563368995,58.74,171.38,171.32,5.40983928]
[1747563369184,62.4984,171.38,171.32,5.40983928]
[1747563369388,62.4984,171.38,171.3,11.24533928]
[1747563369389,5.8347,171.34,171.3,11.24533928]
[1747563369595,64.4947,171.34,171.3,11.24533928]
[1747563369790,58.66,171.34,171.3,5.40983928]
[1747563369991,58.66,171.34,171.3,11.24553928]
[1747563370493,58.66,171.34,171.3,5.40983928]
[1747563371598,58.66,171.34,171.31,5.8354]
[1747563371599,64.4947,171.34,171.31,5.8354]
[1747563376101,58.66,171.34,171.25,3.7705]
[1747563376296,63.96066279,171.37,171.25,3.7705]
[1747563376899,69.79416279,171.37,171.34,5.8343]
[1747563377102,64.3735,171.37,171.34,5.8343]
[1747563378207,5.8338,171.36,171.33,5.8347]
[1747563378603,58.54,171.37,171.3,58.76]
[1747563378805,5.8344,171.35,171.32,5.8351]
[1747563379611,5.8344,171.35,171.31,5.8354]
[1747563379807,5.8344,171.35,171.3,58.76]
[1747563380702,5.8344,171.35,171.32,5.8349]
[1747563381205,58.54,171.37,171.3,58.76]
[1747563381407,5.8339,171.36,171.3,58.76]
[1747563381896,64.3735,171.37,171.34,5.8344]
[1747563384414,58.54,171.37,171.35,5.8341]
[1747563384710,117.12,171.38,171.3,58.76]
[1747563385103,58.74,171.38,171.3,58.76]
[1747563385505,64.2129,171.39,171.3,58.76]
[1747563385808,64.2129,171.39,171.36,5.8336]
[1747563386209,58.36,171.4,171.3,58.76]
[1747563386403,58.76,171.41,171.31,3.904]
[1747563386601,58.36,171.42,171.31,3.904]
[1747563386807,64.1918,171.42,171.31,3.904]
[1747563387515,64.1918,171.42,171.39,5.8327]
[1747563390312,64.1918,171.42,171.38,5.833]
[1747563390617,64.1918,171.42,171.35,58.76]
[1747563391115,5.8318,171.42,171.35,58.76]
[1747563391323,5.8315,171.43,171.35,58.76]
[1747563391614,117.06,171.44,171.35,58.76]
[1747563391808,190.25403971,171.45,171.42,5.8315]
[1747563392007,248.55403971,171.45,171.35,58.76]
[1747563392215,190.25403971,171.45,171.35,58.76]
[1747563393817,196.08473971,171.45,171.35,58.76]
[1747563394317,196.08473971,171.45,171.42,5.8314]
[1747563394917,190.25403971,171.45,171.43,5.8313]
[1747563395118,64.0705,171.46,171.35,58.76]
[1747563396219,58.24,171.46,171.35,58.76]
[1747563396514,58.76,171.47,171.35,70.428]
[1747563396710,5.8295,171.49,171.36,1.3446]
[1747563396909,64.1295,171.49,171.36,1.3446]
[1747563397115,64.1295,171.49,171.46,5.8302]
[1747563398014,133.50436279,171.5,171.47,5.83]
[1747563398218,127.67526279,171.5,171.42,58.22]
[1747563398521,127.65526279,171.5,171.42,58.22]
[1747563398923,5.8296,171.49,171.42,58.22]
[1747563399618,5.8298,171.48,171.45,5.8306]
[1747563401325,5.8295,171.49,171.46,5.8303]
[1747563402829,5.8297,171.48,171.45,5.8306]
[1747563403534,5.8295,171.49,171.45,5.8306]
[1747563404838,5.8295,171.49,171.46,5.8304]
[1747563406441,122.2546,171.5,171.45,5.8306]
[1747563406442,5.8297,171.48,171.45,5.8306]
[1747563406942,5.8295,171.49,171.46,5.8304]
[1747563408844,126.1254,171.5,171.47,5.83]
[1747563409145,58.24,171.51,171.42,58.22]
[1747563409541,64.0688,171.51,171.48,5.8295]
[1747563409739,116.44,171.53,171.42,58.22]
[1747563410042,5.8289,171.51,171.48,5.8295]
[1747563410647,5.8284,171.52,171.49,5.8293]
[1747563411148,116.4,171.53,171.42,58.22]
[1747563411349,5.8289,171.51,171.42,58.22]
[1747563411845,5.8289,171.51,171.48,5.8294]
[1747563412245,5.8289,171.51,171.42,58.22]
[1747563413550,5.8289,171.51,171.48,5.8296]
[1747563413852,5.8289,171.51,171.42,58.22]
[1747563415653,5.8289,171.51,171.48,5.8296]
[1747563416350,116.38,171.53,171.42,58.22]
[1747563416553,5.8285,171.52,171.49,5.8291]
[1747563418054,5.8287,171.51,171.48,5.8296]
[1747563418256,116.38,171.53,171.42,58.22]
[1747563418454,5.8293,171.5,171.47,5.83]
[1747563419757,5.8288,171.51,171.48,5.8297]
[1747563420361,5.8284,171.52,171.49,5.8292]
[1747563420548,58.2,171.53,171.49,5.8292]
[1747563420751,58.68,171.54,171.46,58.2]
[1747563420950,5.8281,171.53,171.49,5.8291]
[1747563421651,5.8281,171.53,171.5,5.8289]
[1747563421861,5.7386,171.55,171.46,58.2]
[1747563422153,5.7386,171.55,171.52,5.8283]
[1747563422154,3.7999,171.55,171.52,5.8283]
[1747563423264,9.6275,171.55,171.52,5.8283]
[1747563423857,5.42066279,171.57,171.5,58.2]
[1747563424955,11.24736279,171.57,171.54,5.8275]
[1747563425158,5.8267,171.57,171.54,5.8275]
[1747563427655,5.8264,171.58,171.55,5.8273]
[1747563428159,5.8267,171.57,171.5,58.2]
[1747563428858,5.8267,171.57,171.54,5.8276]
[1747563429059,5.8264,171.58,171.5,58.2]
[1747563429253,58.56,171.59,171.5,58.2]
[1747563430162,5.8269,171.57,171.54,5.8274]
[1747563430458,58.56,171.59,171.5,58.2]
[1747563430654,5.8265,171.58,171.54,5.8273]
[1747563431357,5.8265,171.58,171.55,5.8273]
[1747563431558,5.8267,171.57,171.5,58.2]
[1747563432153,5.8267,171.57,171.54,5.8276]
[1747563436658,5.827,171.56,171.53,5.8279]
[1747563436961,58.56,171.59,171.5,58.2]
[1747563437564,5.8278,171.54,171.52,5.8283]